bitfinex/quotes_ETHUSD_20240917
["timestamp","ask_amount","ask_price","bid_price","bid_amount"]
[1726537404995,2.329,2282.8,2282.3,4.38151]
[1726537405159,0.04254071,2282.4,2282.3,4.38151]
[1726537405881,2.329,2282.8,2282.3,4.38151]
[1726537406066,0.04254071,2282.4,2282.3,4.38151]
[1726537406273,2.329,2282.8,2282.3,4.38151]
[1726537406445,0.04254071,2282.4,2282.3,4.38151]
[1726537406647,2.329,2282.8,2282.3,5.257826]
[1726537406964,0.04254071,2282.4,2282.3,4.38151]
[1726537407754,0.04254071,2282.4,2282.3,8.76305]
[1726537407959,2.329,2282.8,2282.3,8.76305]
[1726537407960,2.329,2282.8,2282.3,4.38135]
[1726537408155,0.04254071,2282.4,2282.3,4.38135]
[1726537408369,2.329,2282.8,2282.4,4.38127]
[1726537409092,0.04345983,2282.7,2282.4,4.38127]
[1726537409304,2.4591,2283.1,2282.6,4.38082]
[1726537409453,2.4591,2283.1,2282.8,4.38057]
[1726537411358,2.4591,2283.1,2282.6,5.48427635]
[1726537411551,2.4591,2283.1,2282.6,4.3808]
[1726537411786,2.4591,2283.1,2282.7,4.38076]
[1726537412709,0.03976594,2283.0,2282.7,4.38076]
[1726537413759,0.03976594,2283.0,2282.6,8.76165]
[1726537413965,0.03976594,2283.0,2282.6,4.3808]
[1726537414205,0.03976594,2283.0,2282.6,9.85636204]
[1726537414870,0.03976594,2283.0,2282.7,4.38076]
[1726537416004,0.03976594,2283.0,2282.8,4.38057]
[1726537416796,0.03976594,2283.0,2282.6,5.47551204]
[1726537416995,0.03976594,2283.0,2282.8,4.38049]
[1726537417806,0.03976594,2283.0,2282.6,5.47554204]
[1726537418010,0.03976594,2283.0,2282.6,4.38083]
[1726537424429,4.42009594,2283.0,2282.4,6.67566]
[1726537424629,0.03976594,2283.0,2282.6,4.38094]
[1726537425040,0.03970231,2282.9,2282.6,4.38094]
[1726537425341,11.20912594,2283.1,2282.6,4.38094]
[1726537425636,0.03852614,2283.0,2282.6,4.38094]
[1726537426003,4.41878614,2283.0,2282.5,4.38097]
[1726537426498,4.41878614,2283.0,2282.5,8.76194]
[1726537427327,0.03843562,2282.9,2282.5,10.29476604]
[1726537427527,4.36878614,2283.0,2282.5,10.29476604]
[1726537427838,4.36878614,2283.0,2282.6,4.38095]
[1726537433851,4.36878614,2283.0,2282.5,5.91379604]
[1726537434165,4.36878614,2283.0,2282.5,10.29479604]
[1726537435009,6.82896594,2283.1,2282.4,6.56632038]
[1726537435010,2.44886594,2283.1,2282.4,2.2945]
[1726537435251,6.8645,2282.7,2282.2,4.38155]
[1726537435459,6.8645,2282.7,2282.3,4.38154]
[1726537435657,6.8645,2282.7,2282.1,2.2586]
[1726537435841,4.381,2282.6,2282.2,4.38171]
[1726537436048,6.8645,2282.7,2282.2,4.38171]
[1726537436049,11.24545,2282.7,2282.2,4.38171]
[1726537437157,6.8645,2282.7,2282.2,4.38171]
[1726537437353,11.24537,2282.7,2282.2,4.38171]
[1726537437720,4.38106,2282.6,2282.1,4.85223304]
[1726537438358,4.38106,2282.6,2282.2,5.73232534]
[1726537439173,4.38119,2282.5,2281.9,3.17843851]
[1726537439356,4.38119,2282.5,2282.0,4.38207]
[1726537439357,2.4138,2282.4,2282.0,4.38207]
[1726537439566,2.4138,2282.4,2282.0,6.00351689]
[1726537439865,2.4138,2282.4,2281.6,1.83835472]
[1726537439866,2.4138,2282.1,2281.6,0.91503851]
[1726537440077,2.4138,2282.1,2281.7,4.0]
[1726537440078,4.38214,2282.0,2281.7,4.0]
[1726537440465,4.38243,2281.9,2281.4,4.38317]
[1726537440776,8.76444,2282.0,2281.4,6.14641366]
[1726537440950,4.38241,2281.9,2281.5,4.0]
[1726537441154,4.38214,2282.0,2281.5,4.0]
[1726537441338,8.76441,2282.0,2281.4,6.14641366]
[1726537441544,4.38214,2282.0,2281.5,0.93676522]
[1726537442930,4.38234,2281.9,2281.5,0.93676522]
[1726537444066,8.76436,2282.0,2281.5,0.93676522]
[1726537444572,8.76436,2282.0,2281.4,6.14641366]
[1726537444573,4.38214,2282.0,2281.4,1.76324366]
[1726537444770,4.38281,2281.7,2281.2,4.38351]
[1726537444933,4.38253,2281.8,2281.1,2.5279455]
[1726537444934,4.3829,2281.6,2281.1,2.5279455]
[1726537445138,2.4254,2281.5,2281.1,4.17620694]
[1726537445358,2.4254,2281.5,2281.1,8.56004694]
[1726537445568,2.4254,2281.5,2281.1,4.17620694]
[1726537445729,2.4254,2281.5,2281.1,8.55994694]
[1726537445925,2.4254,2281.5,2281.2,1.29438369]
[1726537446131,2.4254,2281.5,2281.1,6.9116855]
[1726537446132,2.4254,2281.5,2281.1,2.5279455]
[1726537447440,2.4254,2281.5,2281.2,4.38363]
[1726537448651,2.4254,2281.5,2281.1,11.18350588]
[1726537448874,2.4254,2281.5,2281.2,1.55673959]
[1726537450172,2.4254,2281.5,2281.1,2.5279455]
[1726537450374,2.4254,2281.5,2281.1,6.9116955]
[1726537451632,2.4254,2281.5,2281.2,4.38359]
[1726537454953,2.4254,2281.5,2281.1,15.56726588]
[1726537455888,2.4254,2281.5,2281.2,4.38365]
[1726537456040,2.4254,2281.5,2281.2,5.51318455]
[1726537461465,2.4254,2281.5,2281.3,4.38346]
[1726537461660,2.4254,2281.5,2281.2,5.51315455]
[1726537461883,2.4254,2281.5,2281.2,1.12953455]
[1726537462074,2.4254,2281.5,2281.1,4.4219755]
[1726537462269,2.4254,2281.5,2281.1,8.8057055]
[1726537463092,2.4254,2281.5,2281.2,4.38364]
[1726537466269,2.4482,2281.7,2281.3,6.34964394]
[1726537466597,2.4482,2281.7,2281.4,0.63496439]
[1726537466797,2.4482,2281.7,2281.3,4.38343]
[1726537470100,2.4482,2281.7,2281.5,4.38304]
[1726537470298,7.47,2282.0,2281.7,4.38265]
[1726537470510,6.86845,2282.2,2281.8,0.876541]
[1726537470669,2.4867,2282.2,2281.8,5.258981]
[1726537471169,2.4867,2282.2,2281.9,4.38218]
[1726537471370,2.4867,2282.2,2282.0,0.97287988]
[1726537472281,2.4867,2282.2,2281.8,6.8045]
[1726537472476,2.4867,2282.2,2281.6,6.81714]
[1726537472696,6.86845,2282.2,2281.7,4.38268]
[1726537472873,6.86845,2282.2,2281.7,5.92847166]
[1726537473273,2.4867,2282.2,2281.8,4.38249]
[1726537474606,2.4867,2282.2,2281.7,1.54579166]
[1726537474607,6.86845,2282.2,2281.7,1.54579166]
[1726537474818,6.86845,2282.2,2281.8,1.27456317]
[1726537475106,2.4867,2282.2,2281.8,1.27456317]
[1726537475284,6.86851,2282.2,2281.8,1.27456317]
[1726537476406,2.4867,2282.2,2281.8,5.65697317]
[1726537476715,2.4867,2282.2,2281.9,1.00395032]
[1726537476880,2.4867,2282.2,2281.8,4.38241]
[1726537477221,2.4867,2282.2,2281.9,4.38219]
[1726537477721,2.4867,2282.2,2282.0,4.38208]
[1726537478674,4.38137,2282.4,2282.0,4.38208]
[1726537478675,6.84677,2282.4,2282.0,4.38208]
[1726537478873,2.4654,2282.4,2282.0,6.70348]
[1726537479866,12.44,2282.8,2282.2,8.76337]
[1726537479867,6.78508,2282.7,2282.2,8.76337]
[1726537480014,6.78508,2282.7,2282.0,3.51760637]
[1726537480015,6.78498,2282.7,2282.0,7.811957]
[1726537480308,6.78498,2282.7,2282.1,4.38191]
[1726537480309,4.38106,2282.6,2282.1,4.38191]
[1726537482596,2.3711,2282.5,2282.0,5.490557]
[1726537482794,2.3711,2282.5,2282.0,4.38199]
[1726537483396,6.75228,2282.5,2282.0,8.764]
[1726537483611,6.75228,2282.5,2282.0,4.38199]
[1726537484294,4.38147,2282.4,2281.9,4.38228]
[1726537484626,4.38147,2282.4,2281.9,1.39609366]
[1726537484999,4.38147,2282.4,2282.0,4.3821]
[1726537485193,2.3711,2282.5,2282.0,8.7641]
[1726537485194,6.75227,2282.5,2282.0,8.7641]
[1726537485505,6.75227,2282.5,2282.1,4.38191]
[1726537485711,2.3711,2282.5,2282.1,6.80321]
[1726537485913,2.3711,2282.5,2282.1,4.38191]
[1726537487951,2.3711,2282.5,2282.2,4.38171]
[1726537488107,6.69169,2282.7,2282.2,4.38171]
[1726537488624,4.38098,2282.6,2282.2,4.38171]
[1726537489151,4.38077,2282.7,2282.3,2.422]
[1726537489537,8.76166,2282.7,2282.3,2.422]
[1726537489744,8.76164,2282.7,2282.3,2.422]
[1726537490043,4.38077,2282.7,2282.3,4.38145]
[1726537491226,4.38077,2282.7,2282.2,4.38164]
[1726537492241,4.38077,2282.7,2282.2,6.1099575]
[1726537492411,4.38077,2282.7,2282.3,4.38145]
[1726537493618,4.33077,2282.7,2282.3,4.38145]
[1726537494853,7.47,2283.1,2282.5,4.33309291]
[1726537495058,7.47,2283.1,2282.8,1.96439291]
[1726537495263,14.7318,2283.2,2282.8,6.34484291]
[1726537495264,2.2918,2283.2,2282.8,6.34484291]
[1726537495426,2.2918,2283.2,2282.8,5.50509359]
[1726537496076,2.2918,2283.2,2282.9,4.38036]
[1726537496382,2.2918,2283.2,2282.9,8.76063]
[1726537497652,2.2918,2283.2,2282.9,4.38027]
[1726537500821,2.2783,2283.5,2283.1,4.38]
[1726537503656,2.2783,2283.5,2283.1,8.7598]
[1726537504076,2.2783,2283.5,2283.1,8.75979]
[1726537504250,2.2783,2283.5,2283.2,1.07241829]
[1726537504662,2.2783,2283.5,2283.2,5.45212829]
[1726537506476,4.37955,2283.4,2282.9,4.38026]
[1726537506775,4.37973,2283.3,2282.9,4.38037]
[1726537507084,4.37973,2283.3,2282.9,5.45290929]
[1726537507583,4.37973,2283.3,2282.9,1.07253929]
[1726537507761,4.37973,2283.3,2282.8,4.38053]
[1726537507970,2.4131,2283.2,2282.8,4.38053]
[1726537508337,2.4131,2283.2,2282.7,6.34502291]
[1726537508338,6.79292,2283.2,2282.7,6.34502291]
[1726537508537,4.37973,2283.3,2282.6,2.75980929]
[1726537508538,6.79339,2283.0,2282.6,0.43330929]
[1726537508773,6.79339,2283.0,2282.5,4.38101]
[1726537509543,2.4131,2283.0,2282.6,4.38094]
[1726537510408,6.7933,2283.0,2282.6,4.38094]
[1726537510635,2.4131,2283.0,2282.6,4.38094]
[1726537511309,2.4131,2283.0,2282.6,5.45357429]
[1726537512697,2.4131,2283.0,2282.7,4.38071]
[1726537513239,2.4131,2283.0,2282.6,5.45357429]
[1726537513539,2.4131,2283.0,2282.6,5.45349429]
[1726537513761,2.4131,2283.0,2282.8,4.38049]
[1726537513905,6.68113,2283.2,2282.8,4.38049]
[1726537514101,6.68113,2283.2,2282.7,6.34513291]
[1726537514746,6.68113,2283.2,2282.7,10.72582291]
[1726537514955,6.68113,2283.2,2282.7,12.0356852]
[1726537515427,6.68113,2283.2,2282.7,4.38068]
[1726537515842,6.68113,2283.2,2282.7,8.76136]
[1726537516825,4.38001,2283.1,2282.6,2.3728]
[1726537517216,4.38001,2283.1,2282.7,4.38077]
[1726537518113,2.3013,2283.2,2282.8,4.38048]
[1726537518315,2.3013,2283.2,2282.8,5.055837]
[1726537518516,2.3013,2283.2,2282.8,4.38048]
[1726537519053,2.3013,2283.2,2282.9,4.38037]
[1726537519257,2.3013,2283.2,2283.0,4.38018]
[1726537519419,2.3194,2283.4,2283.0,4.38015]
[1726537519616,6.69883,2283.4,2283.0,4.38015]
[1726537520629,6.69883,2283.4,2282.9,4.38037]
[1726537521125,6.69883,2283.4,2282.9,4.38028]
[1726537522727,2.3171,2283.0,2282.6,6.7536]
[1726537522925,2.3171,2283.0,2282.7,4.38075]
[1726537527350,5.24125391,2285.2,2282.7,4.38075]
[1726537527351,0.45867269,2284.2,2284.0,3.0]
[1726537527560,0.45867269,2284.2,2283.2,4.37968]
[1726537527561,4.3779,2284.2,2283.6,2.309]
[1726537527773,4.0607505,2284.1,2284.0,4.0]
[1726537527939,20.54866698,2284.1,2284.0,1.37673617]
[1726537528140,0.0419,2283.4,2282.6,1.96439291]
[1726537528671,0.0419,2283.4,2282.6,6.34525291]
[1726537528990,0.0419,2283.4,2282.6,6.34523291]
[1726537529283,0.0419,2283.4,2282.7,4.3806]
[1726537529632,0.0419,2283.4,2282.8,4.38057]
[1726537530658,0.0419,2283.4,2282.8,6.34496291]
[1726537530836,0.0419,2283.4,2283.0,1.96439291]
[1726537531243,0.0419,2283.4,2283.0,6.34447291]
[1726537533640,0.0419,2283.4,2283.2,4.37977]
[1726537533947,0.0419,2283.4,2283.1,4.38]
[1726537534283,0.0419,2283.4,2283.0,10.72455291]
[1726537536474,1.1651,2283.3,2282.3,3.62975776]
[1726537536653,1.1651,2283.0,2282.4,4.38125]
[1726537536859,1.1651,2283.0,2282.5,6.34544291]
[1726537537051,1.1651,2283.0,2282.6,4.38096]
[1726537537799,1.1651,2283.0,2282.5,6.34544291]
[1726537538162,1.719604,2283.0,2282.5,6.34544291]
[1726537538892,1.719604,2283.0,2282.5,8.7621]
[1726537539079,1.719604,2283.0,2282.5,4.38105]
[1726537539288,1.719604,2283.0,2282.5,8.76211]
[1726537539485,1.719604,2283.0,2282.5,8.7621]
[1726537541156,1.719604,2283.0,2282.5,4.38104]
[1726537541357,1.1651,2283.0,2282.5,4.38104]
[1726537541957,1.1651,2283.0,2282.6,4.38093]
[1726537543499,1.1651,2283.0,2282.7,4.38076]
[1726537548006,1.1651,2283.0,2282.7,4.38065]
[1726537548919,1.1651,2283.0,2282.5,8.76203]
[1726537548920,1.719593,2283.0,2282.5,8.76203]
[1726537549129,1.719593,2283.0,2282.6,4.38084]
[1726537550726,1.719593,2283.0,2282.5,4.381]
[1726537551025,1.1651,2283.0,2282.6,4.38087]
[1726537551226,1.1651,2283.0,2282.7,4.38075]
[1726537551802,1.1651,2283.0,2282.5,8.762]
[1726537551984,0.554522,2282.9,2282.6,4.38096]
[1726537552525,1.1651,2283.0,2282.6,4.38096]
[1726537554287,5.54531,2283.0,2282.5,4.38099]
[1726537554527,5.54531,2283.0,2282.6,4.38092]
[1726537556085,1.1651,2283.0,2282.6,4.38092]
[1726537559354,2.157604,2283.0,2282.6,4.38092]
[1726537559525,1.1651,2282.8,2282.5,4.38099]
[1726537560948,1.1651,2282.8,2282.6,4.3808]
[1726537561153,1.1651,2282.8,2282.5,6.34538291]
[1726537561154,1.1651,2282.8,2282.5,8.76204]
[1726537561307,1.1651,2282.8,2282.5,4.38099]
[1726537563221,6.100238,2282.8,2282.2,4.38173]
[1726537563434,4.38077,2282.7,2282.3,4.38152]
[1726537564053,10.480948,2282.8,2282.3,4.38152]
[1726537564223,6.100238,2282.8,2282.3,4.38152]
[1726537564909,10.480918,2282.8,2282.3,4.38152]
[1726537565110,5.4288818,2282.7,2282.3,4.38152]
[1726537566246,1.1651,2282.8,2282.5,4.38106]
[1726537566473,1.1651,2282.8,2282.1,4.3819]
[1726537566674,1.1651,2282.5,2282.3,4.38153]
[1726537575458,1.1651,2282.9,2282.5,4.38106]
[1726537575866,1.1651,2282.9,2282.4,2.268]
[1726537575867,1.1651,2282.9,2282.6,1.96439291]
[1726537576070,1.1651,2283.1,2282.8,4.38048]
[1726537577992,5.54511,2283.1,2282.6,4.38087]
[1726537579005,4.38022,2283.0,2282.5,8.76204]
[1726537579297,4.38022,2283.0,2282.5,4.38099]
[1726537579480,4.38022,2283.0,2282.5,8.76204]
[1726537581473,5.54511,2283.1,2282.6,4.38096]
[1726537581675,5.54511,2283.1,2282.7,4.38074]
[1726537582105,9.92521,2283.1,2282.6,4.38096]
[1726537582459,4.38028,2283.0,2282.5,4.80437929]
[1726537582665,5.672801,2283.0,2282.5,4.38114]
[1726537582968,4.38028,2283.0,2282.5,4.38114]
[1726537584508,5.54511,2283.1,2282.6,4.3809]
[1726537584707,9.92524,2283.1,2282.6,4.3809]
[1726537585319,4.38029,2283.0,2282.5,8.76218]
[1726537585519,9.92521,2283.1,2282.6,4.38095]
[1726537587265,4.38021,2283.0,2282.6,4.38095]
[1726537588169,1.1651,2283.1,2282.8,1.96439291]
[1726537588463,7.47,2283.3,2282.8,11.01917]
[1726537588464,13.01482,2283.3,2282.8,11.01917]
[1726537588763,13.01482,2283.3,2282.8,6.63868]
[1726537588764,5.54482,2283.3,2282.8,6.63868]
[1726537589149,1.1651,2283.3,2283.0,4.38009]
[1726537589351,4.37944,2283.4,2282.9,4.38027]
[1726537589730,4.37944,2283.4,2282.9,8.76056]
[1726537590066,8.75899,2283.4,2282.9,4.38027]
[1726537590370,4.37944,2283.4,2282.9,8.76057]
[1726537590568,5.06498071,2283.4,2282.9,8.76057]
[1726537591032,5.06498071,2283.4,2282.9,8.76054]
[1726537591683,5.06498071,2283.4,2282.9,4.38027]
[1726537592743,5.06498071,2283.4,2282.9,8.76057]
[1726537592934,5.06498071,2283.4,2282.9,4.38027]
[1726537593130,5.54435,2283.5,2282.9,4.38027]
[1726537593333,4.37917,2283.6,2283.1,2.4125]
[1726537593526,4.37917,2283.6,2283.1,6.79236]
[1726537594243,4.37917,2283.6,2283.1,7.66803529]
[1726537594425,4.37917,2283.6,2283.1,12.04791529]
[1726537594628,4.37917,2283.6,2283.1,7.66803529]
[1726537594863,4.37935,2283.5,2282.9,4.38025]
[1726537595068,5.54457,2283.4,2282.9,6.78515]
[1726537595373,5.54457,2283.4,2282.9,12.04033429]
[1726537595856,4.37935,2283.5,2283.0,4.3801]
[1726537596170,1.1651,2283.6,2283.0,4.3801]
[1726537596171,1.1651,2283.6,2283.2,2.4048]
[1726537596342,1.1651,2283.6,2283.3,0.678464]
[1726537596546,5.54417,2283.6,2283.2,2.4048]
[1726537596860,1.1651,2283.6,2283.2,6.78461]
[1726537597769,1.1651,2283.6,2283.2,2.4048]
[1726537597941,4.37962,2283.3,2282.8,6.73838]
[1726537598270,4.37983,2283.2,2282.7,4.38067]
[1726537598577,4.37962,2283.3,2282.7,4.38067]
[1726537598745,4.37991,2283.2,2282.7,4.38067]
[1726537601024,4.37991,2283.2,2282.6,2.3579]
[1726537601229,1.1651,2283.1,2282.6,2.3579]
[1726537601631,5.54511,2283.1,2282.6,6.73876]
[1726537601931,6.17470213,2283.1,2282.6,6.73876]
[1726537602659,6.17470213,2283.1,2282.6,8.70315291]
[1726537603233,1.79469213,2283.1,2282.7,4.38077]
[1726537603435,4.37991,2283.2,2282.7,4.38077]
[1726537603832,1.1651,2282.9,2282.6,2.3579]
[1726537604052,4.38069,2282.8,2282.4,2.298]
[1726537604257,4.935221,2282.8,2282.4,2.298]
[1726537604475,4.38098,2282.6,2282.2,2.3954]
[1726537604791,4.38119,2282.5,2282.0,6.77741]
[1726537604998,8.76211,2282.6,2282.0,6.7775]
[1726537605354,4.38098,2282.6,2282.1,4.38189]
[1726537605670,4.38101,2282.6,2282.2,2.3954]
[1726537605887,9.92682,2282.7,2282.2,2.3954]
[1726537606045,5.54587,2282.7,2282.2,2.3954]
[1726537606352,9.92678,2282.7,2282.2,2.3954]
[1726537607093,4.38098,2282.6,2282.2,2.3954]
[1726537608097,8.76169,2282.7,2282.2,4.35979291]
[1726537608260,4.38077,2282.7,2282.2,4.35979291]
[1726537608795,5.54564,2282.9,2282.3,4.38153]
[1726537608963,3.0,2282.8,2282.3,4.38153]
[1726537609986,3.0,2282.8,2281.9,1.74087767]
[1726537609987,5.54525,2283.1,2282.6,4.3809]
[1726537610198,5.54525,2283.1,2282.6,1.96439291]
[1726537610199,1.1651,2283.1,2282.6,1.96439291]
[1726537610502,4.37983,2283.2,2282.7,4.38064]
[1726537611514,9.92453,2283.3,2282.7,8.76131]
[1726537611714,5.54477,2283.3,2282.7,4.38064]
[1726537611924,5.54477,2283.3,2282.8,6.73365]
[1726537612078,5.54477,2283.3,2282.8,2.3531]
[1726537612808,4.37982,2283.2,2282.8,2.3531]
[1726537612974,5.54477,2283.3,2282.8,2.3531]
[1726537613375,9.92454,2283.3,2282.8,2.3531]
[1726537613807,9.92454,2283.3,2282.8,6.73349]
[1726537613808,4.37967,2283.3,2282.8,6.73349]
[1726537614014,4.37967,2283.3,2282.8,7.64647622]
[1726537614015,1.1651,2283.3,2282.8,7.64647622]
[1726537614228,4.37983,2283.2,2282.8,2.3531]
[1726537615525,1.1651,2283.3,2282.8,6.73364]
[1726537615526,5.54473,2283.3,2282.8,6.73364]
[1726537616823,4.37984,2283.2,2282.8,2.3531]
[1726537618004,4.38018,2283.1,2282.6,2.3358]
[1726537618206,4.38023,2283.0,2282.6,2.3358]
[1726537620914,8.76055,2283.0,2282.6,2.3358]
[1726537621439,4.38086,2282.7,2282.4,2.4482]
[1726537623044,4.38104,2282.6,2282.4,2.4482]
[1726537624996,4.38116,2282.5,2282.2,2.2985]
[1726537625265,4.38098,2282.6,2282.2,2.2985]
[1726537627400,8.76203,2282.6,2282.2,2.2985]
[1726537627599,4.38098,2282.6,2282.2,2.2985]
[1726537627930,8.76204,2282.6,2282.2,2.2985]
[1726537628513,4.38098,2282.6,2282.2,2.2985]
[1726537629642,4.38098,2282.6,2282.2,6.68022]
[1726537630871,4.38098,2282.6,2282.2,2.2985]
[1726537631674,4.38098,2282.6,2282.2,6.68022]
[1726537635302,4.38068,2282.8,2282.3,6.66354]
[1726537635982,8.76136,2282.8,2282.3,6.66354]
[1726537636135,4.38034,2283.0,2282.5,2.3505]
[1726537636339,11.84995,2283.2,2282.7,2.3505]
[1726537636552,4.38001,2283.1,2282.7,2.3505]
[1726537636855,4.38031,2283.0,2282.7,2.3505]
[1726537637032,4.38041,2282.9,2282.7,2.3505]
[1726537637233,4.38041,2282.9,2282.5,2.4164]
[1726537637962,8.76093,2282.9,2282.5,2.4164]
[1726537638170,4.38041,2282.9,2282.5,2.4164]
[1726537638479,5.54551,2282.9,2282.5,2.4164]
[1726537638667,4.38068,2282.8,2282.5,2.4164]
[1726537642079,4.38068,2282.8,2282.3,6.79789]
[1726537642080,8.76139,2282.8,2282.3,6.79789]
[1726537642382,4.38068,2282.8,2282.3,6.79789]
[1726537642555,4.38068,2282.8,2282.3,8.11227229]
[1726537644872,8.76139,2282.8,2282.3,8.11227229]
[1726537645464,8.76137,2282.8,2282.3,8.11227229]
[1726537645652,8.76137,2282.8,2282.3,6.79789]
[1726537647789,1.1651,2282.9,2282.3,2.4164]
[1726537647944,4.38117,2282.5,2282.3,2.4164]
[1726537648140,4.38145,2282.4,2282.1,2.4526]
[1726537648774,5.5463,2282.5,2282.1,2.4526]
[1726537648982,4.3811,2282.6,2282.1,8.79891291]
[1726537649450,4.3811,2282.6,2282.1,2.4526]
[1726537649646,0.55462,2282.5,2282.1,2.4526]
[1726537649876,4.3811,2282.6,2282.1,2.4526]
[1726537651169,4.38128,2282.5,2282.1,2.4526]
[1726537660213,4.38154,2282.3,2282.1,2.4526]
[1726537660458,4.38231,2282.0,2281.9,2.4349]
[1726537660659,1.1651,2282.4,2281.8,0.0382455]
[1726537660660,6.34647291,2282.1,2281.8,0.0382455]
[1726537660841,4.38203,2282.1,2281.8,0.0382455]
[1726537661377,4.38176,2282.2,2281.8,0.0382455]
[1726537661531,4.38145,2282.4,2281.9,6.81709]
[1726537661737,4.38157,2282.3,2282.0,2.4349]
[1726537662067,4.38174,2282.2,2282.0,2.4349]
[1726537662226,4.38174,2282.2,2281.8,0.0382455]
[1726537662227,4.38174,2282.2,2281.8,2.4731455]
[1726537663034,4.38174,2282.2,2281.8,6.8556455]
[1726537663272,4.38174,2282.2,2281.8,2.4731455]
[1726537663775,4.38202,2282.1,2281.8,2.4731455]
[1726537663931,4.38222,2282.0,2281.8,2.4731455]
[1726537664129,4.38231,2281.9,2281.8,0.0382455]
[1726537664334,5.54741,2281.9,2281.8,0.0382455]
[1726537664664,4.38231,2281.9,2281.8,0.0382455]
[1726537665246,9.757583,2281.9,2281.8,0.0382455]
[1726537665481,8.76462,2281.9,2281.8,0.0382455]
[1726537665685,4.38231,2281.9,2281.8,0.0382455]
[1726537667444,8.76462,2281.9,2281.8,0.0382455]
[1726537667772,9.92972,2281.9,2281.8,0.0382455]
[1726537674572,14.31203,2281.9,2281.8,0.0382455]
[1726537674880,17.31203,2281.9,2281.8,0.0382455]
[1726537675095,17.86203,2281.9,2281.8,0.0382455]
[1726537675297,22.24434,2281.9,2281.8,0.0382455]
[1726537675555,17.86203,2281.9,2281.8,0.0382455]
[1726537675760,22.24434,2281.9,2281.8,0.0382455]
[1726537676045,17.86203,2281.9,2281.8,0.0382455]
[1726537676348,22.24434,2281.9,2281.8,0.0382455]
[1726537676849,17.86203,2281.9,2281.8,0.0382455]
[1726537677830,19.82642291,2281.9,2281.8,0.0382455]
[1726537681873,24.20873291,2281.9,2281.8,0.0382455]
[1726537682942,19.82642291,2281.9,2281.8,0.0382455]
[1726537683142,24.20873291,2281.9,2281.8,0.0382455]
[1726537683557,19.82642291,2281.9,2281.8,0.0382455]
[1726537684164,24.20873291,2281.9,2281.8,0.0382455]
[1726537687112,19.82642291,2281.9,2281.8,0.0382455]
[1726537687588,24.20873291,2281.9,2281.8,0.0382455]
[1726537687752,19.82642291,2281.9,2281.8,0.0382455]
[1726537687953,24.20873291,2281.9,2281.8,0.0382455]
[1726537688264,19.82642291,2281.9,2281.8,0.0382455]
[1726537689175,24.20873291,2281.9,2281.8,0.0382455]
[1726537689559,19.82642291,2281.9,2281.8,0.0382455]
[1726537689891,24.20873291,2281.9,2281.8,0.0382455]
[1726537691271,19.82642291,2281.9,2281.8,0.0382455]
[1726537692602,13.72901291,2281.9,2281.8,0.0382455]
[1726537693970,10.72901291,2281.9,2281.8,0.0382455]
[1726537694298,8.76462,2281.9,2281.8,2.3978455]
[1726537694803,10.72901291,2281.9,2281.8,2.3978455]
[1726537695577,13.72901291,2281.9,2281.8,0.0382455]
[1726537698481,19.27642291,2281.9,2281.8,0.0382455]
[1726537698664,19.82642291,2281.9,2281.8,0.0382455]
[1726537700896,18.66132291,2281.9,2281.8,0.0382455]
[1726537703072,19.82642291,2281.9,2281.8,0.0382455]
[1726537703507,17.86203,2281.9,2281.8,0.0382455]
[1726537703710,19.82642291,2281.9,2281.8,0.0382455]
[1726537703859,24.20873291,2281.9,2281.8,0.0382455]
[1726537705945,22.12493494,2281.9,2281.8,0.0382455]
[1726537706231,20.95983494,2281.9,2281.8,0.0382455]
[1726537706637,22.12493494,2281.9,2281.8,0.0382455]
[1726537707348,20.95983494,2281.9,2281.8,0.0382455]
[1726537707700,13.02752494,2281.9,2281.8,0.0382455]
[1726537708725,17.40983494,2281.9,2281.8,0.0382455]
[1726537708903,16.02752494,2281.9,2281.8,0.0382455]
[1726537710623,20.40983494,2281.9,2281.8,0.0382455]
[1726537711129,16.02752494,2281.9,2281.8,0.0382455]
[1726537711555,22.12493494,2281.9,2281.8,0.0382455]
[1726537713665,26.50724494,2281.9,2281.8,0.0382455]
[1726537714258,26.9663446,2281.9,2281.8,0.0382455]
[1726537717424,27.18161669,2281.9,2281.8,0.0382455]
[1726537720527,26.9663446,2281.9,2281.8,0.0382455]
[1726537721624,21.4189346,2281.9,2281.8,0.0382455]
[1726537721946,13.14693,2281.9,2281.8,0.0382455]
[1726537722146,8.76462,2281.9,2281.8,0.0382455]
[1726537722542,17.40983494,2281.9,2281.8,0.0382455]
[1726537722741,13.14693,2281.9,2281.8,0.0382455]
[1726537723066,18.72452794,2281.9,2281.8,0.0382455]
[1726537723359,22.27452794,2281.9,2281.8,0.0382455]
[1726537725503,17.89221794,2281.9,2281.8,0.0382455]
[1726537725795,16.57752494,2281.9,2281.8,0.0382455]
[1726537727192,20.95983494,2281.9,2281.8,0.0382455]
[1726537727954,18.66396648,2281.9,2281.8,0.0382455]
[1726537729056,14.28165648,2281.9,2281.8,0.0382455]
[1726537729256,18.66396648,2281.9,2281.8,0.0382455]
[1726537731161,19.82906648,2281.9,2281.8,0.0382455]
[1726537732966,18.66396648,2281.9,2281.8,0.0382455]
[1726537736501,23.04627648,2281.9,2281.8,0.0382455]
[1726537737918,13.15038,2281.3,2281.2,2.3854]
[1726537738114,18.11741648,2281.3,2281.2,2.3854]
[1726537738779,11.76692,2281.3,2281.2,2.3854]
[1726537738996,13.73395648,2281.3,2281.2,2.3854]
[1726537739396,18.11741648,2281.3,2281.2,2.3854]
[1726537740030,20.41420416,2281.3,2281.2,2.3854]
[1726537741797,11.7673,2281.2,2281.1,0.0382455]
[1726537741989,16.15095,2281.2,2281.1,0.0382455]
[1726537743330,16.15095,2281.2,2281.1,2.2933455]
[1726537746626,16.15095,2281.2,2281.1,0.0382455]